[Event "Titled Tuesday Blitz June 6 Early 2023"]
[White "Martic, Ivan"]
[Black "Korobov, Anton"]
[WhiteFideId "929301"]
[BlackFideId "14105730"]
[WhiteElo "2346"]
[BlackElo "2638"]
[Result "0-1"]
[Round "2"]
[TimeControl "180+2"]
[Date "2023.06.06"]
[WhiteClock "0:00:02"]
[BlackClock "0:00:30"]
[Board "8"]

1. e4 {[%clk 0:02:59]}  c5 {[%clk 0:02:59]} 2. Nf3 {[%clk 0:02:59]}  d6 {[%clk 0:03:00]} 3. Bb5+ {[%clk 0:02:59]}  Nd7 {[%clk 0:02:59]} 4. O-O {[%clk 0:02:55]}  a6 {[%clk 0:02:58]} 5. Bd3 {[%clk 0:02:55]}  Ngf6 {[%clk 0:02:58]} 6. c3 {[%clk 0:02:55]}  e5 {[%clk 0:02:59]} 7. Bc2 {[%clk 0:02:51]}  Be7 {[%clk 0:02:59]} 8. d4 {[%clk 0:02:51]}  O-O {[%clk 0:03:00]} 9. a4 {[%clk 0:02:47]}  Rb8 {[%clk 0:02:57]} 10. Re1 {[%clk 0:02:46]}  b5 {[%clk 0:02:56]} 11. axb5 {[%clk 0:02:47]}  axb5 {[%clk 0:02:57]} 12. b4 {[%clk 0:02:42]}  Qc7 {[%clk 0:02:50]} 13. Nbd2 {[%clk 0:02:37]}  Bb7 {[%clk 0:02:30]} 14. d5 {[%clk 0:02:35]}  Ra8 {[%clk 0:02:31]} 15. Rxa8 {[%clk 0:02:21]}  Rxa8 {[%clk 0:02:30]} 16. Nb3 {[%clk 0:02:22]}  c4 {[%clk 0:02:15]} 17. Na5 {[%clk 0:02:20]}  Rxa5 {[%clk 0:02:15]} 18. bxa5 {[%clk 0:02:21]}  Qxa5 {[%clk 0:02:16]} 19. Bd2 {[%clk 0:02:16]}  Nc5 {[%clk 0:02:16]} 20. Qb1 {[%clk 0:01:37]}  h6 {[%clk 0:02:05]} 21. h3 {[%clk 0:01:36]}  Nfd7 {[%clk 0:01:46]} 22. Qb4 {[%clk 0:01:28]}  Qxb4 {[%clk 0:01:42]} 23. cxb4 {[%clk 0:01:29]}  Na6 {[%clk 0:01:43]} 24. Ra1 {[%clk 0:01:25]}  Bd8 {[%clk 0:01:43]} 25. Bc3 {[%clk 0:00:59]}  f5 {[%clk 0:01:42]} 26. Nd2 {[%clk 0:00:48]}  Nf6 {[%clk 0:01:41]} 27. f3 {[%clk 0:00:45]}  Bb6+ {[%clk 0:01:41]} 28. Kh2 {[%clk 0:00:41]}  Bd4 {[%clk 0:01:41]} 29. Nb1 {[%clk 0:00:29]}  Nxb4 {[%clk 0:01:39]} 30. Bd1 {[%clk 0:00:20]}  Bxd5 {[%clk 0:01:24]} 31. exd5 {[%clk 0:00:18]}  Nbxd5 {[%clk 0:01:23]} 32. Ra8+ {[%clk 0:00:15]}  Kf7 {[%clk 0:01:23]} 33. Ba5 {[%clk 0:00:11]}  b4 {[%clk 0:01:11]} 34. Rb8 {[%clk 0:00:10]}  Bc5 {[%clk 0:01:04]} 35. Nd2 {[%clk 0:00:10]}  Nc3 {[%clk 0:00:52]} 36. Bc2 {[%clk 0:00:10]}  b3 {[%clk 0:00:52]} 37. Nxb3 {[%clk 0:00:09]}  cxb3 {[%clk 0:00:52]} 38. Bxb3+ {[%clk 0:00:09]}  Ncd5 {[%clk 0:00:53]} 39. Bd8 {[%clk 0:00:07]}  Kg6 {[%clk 0:00:52]} 40. Bxf6 {[%clk 0:00:04]}  Nxf6 {[%clk 0:00:53]} 41. Rb7 {[%clk 0:00:04]}  h5 {[%clk 0:00:49]} 42. Bf7+ {[%clk 0:00:03]}  Kh6 {[%clk 0:00:50]} 43. h4 {[%clk 0:00:04]}  e4 {[%clk 0:00:45]} 44. Be6 {[%clk 0:00:04]}  e3 {[%clk 0:00:42]} 45. Rb2 {[%clk 0:00:03]}  f4 {[%clk 0:00:42]} 46. g3 {[%clk 0:00:03]}  d5 {[%clk 0:00:36]} 47. gxf4 {[%clk 0:00:03]}  d4 {[%clk 0:00:37]} 48. Bf5 {[%clk 0:00:03]}  Nd5 {[%clk 0:00:34]} 49. Kg1 {[%clk 0:00:02]}  Nxf4 {[%clk 0:00:34]} 50. Rb5 {[%clk 0:00:02]}  e2 {[%clk 0:00:32]} 51. Kf2 {[%clk 0:00:02]}  d3+ {[%clk 0:00:29]} 52. Rxc5 {[%clk 0:00:02]}  d2 {[%clk 0:00:30]} 53. Bc2 {[%clk 0:00:02]}  e1=Q# {[%clk 0:00:30]} 0-1


[Site "https://www.chess.com"]

[Event "Titled Tuesday Blitz June 6 Early 2023"]
[White "Andreikin, Dmitry"]
[Black "Bayo Milagro, Alvaro"]
[WhiteFideId "4158814"]
[BlackFideId "22275240"]
[WhiteElo "2736"]
[BlackElo "2270"]
[Result "1-0"]
[Round "2"]
[TimeControl "180+2"]
[Date "2023.06.06"]
[WhiteClock "0:01:42"]
[BlackClock "0:00:21"]
[Board "9"]

1. d4 {[%clk 0:03:00]}  Nf6 {[%clk 0:02:59]} 2. c4 {[%clk 0:03:01]}  e6 {[%clk 0:02:59]} 3. Nf3 {[%clk 0:03:01]}  d5 {[%clk 0:02:59]} 4. Bg5 {[%clk 0:03:00]}  Be7 {[%clk 0:02:59]} 5. e3 {[%clk 0:03:00]}  O-O {[%clk 0:02:59]} 6. Nbd2 {[%clk 0:03:00]}  h6 {[%clk 0:02:59]} 7. Bh4 {[%clk 0:03:00]}  b6 {[%clk 0:02:58]} 8. cxd5 {[%clk 0:02:57]}  Nxd5 {[%clk 0:02:58]} 9. Bxe7 {[%clk 0:02:56]}  Qxe7 {[%clk 0:02:58]} 10. Bc4 {[%clk 0:02:54]}  Bb7 {[%clk 0:02:58]} 11. Rc1 {[%clk 0:02:54]}  Rc8 {[%clk 0:02:37]} 12. O-O {[%clk 0:02:52]}  Nd7 {[%clk 0:02:38]} 13. Qe2 {[%clk 0:02:50]}  c5 {[%clk 0:02:37]} 14. Ba6 {[%clk 0:02:50]}  N7f6 {[%clk 0:02:36]} 15. Bxb7 {[%clk 0:02:43]}  Qxb7 {[%clk 0:02:37]} 16. dxc5 {[%clk 0:02:44]}  Rxc5 {[%clk 0:02:33]} 17. Rxc5 {[%clk 0:02:44]}  bxc5 {[%clk 0:02:33]} 18. Nc4 {[%clk 0:02:43]}  Qa6 {[%clk 0:02:24]} 19. b3 {[%clk 0:02:39]}  Nc3 {[%clk 0:02:09]} 20. Qb2 {[%clk 0:02:37]}  Nfe4 {[%clk 0:01:58]} 21. Nfd2 {[%clk 0:02:36]}  Rd8 {[%clk 0:01:46]} 22. Nxe4 {[%clk 0:02:35]}  Nxe4 {[%clk 0:01:46]} 23. Rc1 {[%clk 0:02:31]}  Qb7 {[%clk 0:01:26]} 24. h3 {[%clk 0:02:30]}  Qd5 {[%clk 0:01:20]} 25. Qc2 {[%clk 0:02:27]}  Nd6 {[%clk 0:01:14]} 26. Rd1 {[%clk 0:02:25]}  Qc6 {[%clk 0:01:08]} 27. Ne5 {[%clk 0:02:16]}  Qc7 {[%clk 0:01:06]} 28. g4 {[%clk 0:02:04]}  Nb7 {[%clk 0:01:03]} 29. Rxd8+ {[%clk 0:02:02]}  Nxd8 {[%clk 0:00:59]} 30. Qe4 {[%clk 0:02:02]}  Nb7 {[%clk 0:00:45]} 31. Kf1 {[%clk 0:01:55]}  Nd6 {[%clk 0:00:45]} 32. Qc6 {[%clk 0:01:55]}  Qxc6 {[%clk 0:00:38]} 33. Nxc6 {[%clk 0:01:56]}  a6 {[%clk 0:00:38]} 34. Ke2 {[%clk 0:01:55]}  Kf8 {[%clk 0:00:38]} 35. Kd3 {[%clk 0:01:55]}  Ke8 {[%clk 0:00:39]} 36. Nb8 {[%clk 0:01:52]}  a5 {[%clk 0:00:38]} 37. Nc6 {[%clk 0:01:52]}  Nb7 {[%clk 0:00:34]} 38. Kc4 {[%clk 0:01:52]}  Kd7 {[%clk 0:00:29]} 39. Ne5+ {[%clk 0:01:52]}  Ke7 {[%clk 0:00:30]} 40. Kb5 {[%clk 0:01:52]}  f6 {[%clk 0:00:27]} 41. Nc4 {[%clk 0:01:51]}  f5 {[%clk 0:00:26]} 42. gxf5 {[%clk 0:01:47]}  exf5 {[%clk 0:00:26]} 43. Nxa5 {[%clk 0:01:45]}  Nxa5 {[%clk 0:00:21]} 44. Kxa5 {[%clk 0:01:46]}  g5 {[%clk 0:00:21]} 45. a4 {[%clk 0:01:44]}  g4 {[%clk 0:00:21]} 46. h4 {[%clk 0:01:42]} 1-0


[Site "https://www.chess.com"]

[Event "Titled Tuesday Blitz June 6 Early 2023"]
[White "Yaniuk, Volodymyr"]
[Black "Pranesh M"]
[WhiteFideId "14133083"]
[BlackFideId "35028600"]
[WhiteElo "2141"]
[BlackElo "2437"]
[Result "0-1"]
[Round "2"]
[TimeControl "180+2"]
[Date "2023.06.06"]
[WhiteClock "0:00:02"]
[BlackClock "0:00:07"]
[Board "12"]

1. d4 {[%clk 0:03:00]}  d5 {[%clk 0:03:00]} 2. c4 {[%clk 0:02:58]}  e6 {[%clk 0:03:00]} 3. Nf3 {[%clk 0:02:58]}  Nf6 {[%clk 0:03:01]} 4. g3 {[%clk 0:02:58]}  dxc4 {[%clk 0:02:58]} 5. Bg2 {[%clk 0:02:56]}  Nc6 {[%clk 0:02:59]} 6. O-O {[%clk 0:02:55]}  Rb8 {[%clk 0:02:59]} 7. a4 {[%clk 0:02:53]}  a6 {[%clk 0:02:58]} 8. Qc2 {[%clk 0:02:48]}  b5 {[%clk 0:02:56]} 9. Rd1 {[%clk 0:02:40]}  Nd5 {[%clk 0:02:44]} 10. axb5 {[%clk 0:02:36]}  axb5 {[%clk 0:02:44]} 11. Nc3 {[%clk 0:02:31]}  Be7 {[%clk 0:02:41]} 12. e4 {[%clk 0:02:29]}  Ncb4 {[%clk 0:02:26]} 13. Qe2 {[%clk 0:02:29]}  Nxc3 {[%clk 0:02:19]} 14. bxc3 {[%clk 0:02:30]}  Nd3 {[%clk 0:02:20]} 15. Be3 {[%clk 0:02:21]}  O-O {[%clk 0:02:19]} 16. Ra7 {[%clk 0:02:17]}  Bb7 {[%clk 0:02:17]} 17. Nd2 {[%clk 0:02:03]}  c5 {[%clk 0:02:14]} 18. Rb1 {[%clk 0:01:56]}  Bc6 {[%clk 0:02:05]} 19. Nxc4 {[%clk 0:01:46]}  cxd4 {[%clk 0:01:58]} 20. Bxd4 {[%clk 0:01:31]}  bxc4 {[%clk 0:01:43]} 21. Rxb8 {[%clk 0:01:32]}  Qxb8 {[%clk 0:01:43]} 22. Rxe7 {[%clk 0:01:31]}  e5 {[%clk 0:01:34]} 23. Be3 {[%clk 0:01:30]}  Qb1+ {[%clk 0:01:33]} 24. Qf1 {[%clk 0:01:23]}  Qc2 {[%clk 0:01:30]} 25. Rc7 {[%clk 0:01:21]}  Bb5 {[%clk 0:01:30]} 26. Qa1 {[%clk 0:01:02]}  h6 {[%clk 0:01:24]} 27. h4 {[%clk 0:01:02]}  Rd8 {[%clk 0:01:07]} 28. Qa5 {[%clk 0:00:57]}  Qb1+ {[%clk 0:00:55]} 29. Kh2 {[%clk 0:00:57]}  Rb8 {[%clk 0:00:50]} 30. Qa7 {[%clk 0:00:52]}  Rf8 {[%clk 0:00:51]} 31. Rb7 {[%clk 0:00:50]}  Ne1 {[%clk 0:00:50]} 32. Rb8 {[%clk 0:00:33]}  Rxb8 {[%clk 0:00:41]} 33. Qxb8+ {[%clk 0:00:32]}  Kh7 {[%clk 0:00:42]} 34. Qxe5 {[%clk 0:00:30]}  Nxg2 {[%clk 0:00:30]} 35. Kxg2 {[%clk 0:00:31]}  Bd7 {[%clk 0:00:24]} 36. Bd4 {[%clk 0:00:25]}  f6 {[%clk 0:00:24]} 37. Qe7 {[%clk 0:00:21]}  Bc6 {[%clk 0:00:24]} 38. f3 {[%clk 0:00:20]}  Qc2+ {[%clk 0:00:16]} 39. Kh3 {[%clk 0:00:20]}  Qd1 {[%clk 0:00:14]} 40. Bxf6 {[%clk 0:00:12]}  Bd7+ {[%clk 0:00:09]} 41. g4 {[%clk 0:00:06]}  Qxf3+ {[%clk 0:00:08]} 42. Kh2 {[%clk 0:00:06]}  Qf4+ {[%clk 0:00:07]} 43. Kh1 {[%clk 0:00:05]}  Qf1+ {[%clk 0:00:06]} 44. Kh2 {[%clk 0:00:05]}  Qe2+ {[%clk 0:00:07]} 45. Kh1 {[%clk 0:00:03]}  Qxg4 {[%clk 0:00:07]} 46. Bxg7 {[%clk 0:00:02]}  Qxg7 {[%clk 0:00:07]} 0-1


[Site "https://www.chess.com"]

[Event "Titled Tuesday Blitz June 6 Early 2023"]
[White "Skliarov, Viktor"]
[Black "Tabatabaei, M. Amin"]
[WhiteFideId "14106736"]
[BlackFideId "12521213"]
[WhiteElo "2317"]
[BlackElo "2575"]
[Result "0-1"]
[Round "2"]
[TimeControl "180+2"]
[Date "2023.06.06"]
[WhiteClock "0:00:05"]
[BlackClock "0:00:30"]
[Board "14"]

1. e4 {[%clk 0:03:00]}  e6 {[%clk 0:03:00]} 2. d4 {[%clk 0:03:00]}  d5 {[%clk 0:03:01]} 3. e5 {[%clk 0:03:01]}  c5 {[%clk 0:03:01]} 4. c3 {[%clk 0:03:01]}  Nc6 {[%clk 0:03:01]} 5. Nf3 {[%clk 0:03:02]}  Qb6 {[%clk 0:03:02]} 6. a3 {[%clk 0:03:03]}  c4 {[%clk 0:03:02]} 7. Nbd2 {[%clk 0:03:03]}  Na5 {[%clk 0:03:02]} 8. g3 {[%clk 0:03:03]}  Bd7 {[%clk 0:03:03]} 9. h4 {[%clk 0:03:03]}  Ne7 {[%clk 0:03:03]} 10. Bh3 {[%clk 0:03:03]}  h6 {[%clk 0:03:01]} 11. O-O {[%clk 0:03:02]}  Qc7 {[%clk 0:03:01]} 12. h5 {[%clk 0:03:01]}  Nc8 {[%clk 0:03:01]} 13. Nh4 {[%clk 0:03:01]}  Nb6 {[%clk 0:03:01]} 14. f4 {[%clk 0:03:01]}  Be7 {[%clk 0:02:55]} 15. Ndf3 {[%clk 0:03:01]}  Nb3 {[%clk 0:02:53]} 16. Rb1 {[%clk 0:03:00]}  Nxc1 {[%clk 0:02:39]} 17. Rxc1 {[%clk 0:02:48]}  O-O-O {[%clk 0:02:35]} 18. f5 {[%clk 0:02:46]}  Kb8 {[%clk 0:02:35]} 19. fxe6 {[%clk 0:02:45]}  Bxe6 {[%clk 0:02:22]} 20. Bxe6 {[%clk 0:02:44]}  fxe6 {[%clk 0:02:23]} 21. Ng6 {[%clk 0:02:44]}  Rhe8 {[%clk 0:02:23]} 22. Rc2 {[%clk 0:02:35]}  Qd7 {[%clk 0:02:19]} 23. Rcf2 {[%clk 0:02:33]}  a6 {[%clk 0:02:16]} 24. Qd2 {[%clk 0:02:21]}  Ka7 {[%clk 0:02:16]} 25. Nxe7 {[%clk 0:02:17]}  Rxe7 {[%clk 0:02:17]} 26. Nh4 {[%clk 0:02:17]}  Qb5 {[%clk 0:02:17]} 27. Ng6 {[%clk 0:02:15]}  Rc7 {[%clk 0:02:16]} 28. g4 {[%clk 0:01:56]}  Na4 {[%clk 0:02:15]} 29. Kg2 {[%clk 0:01:54]}  Rc6 {[%clk 0:02:12]} 30. g5 {[%clk 0:01:24]}  Rb6 {[%clk 0:02:07]} 31. gxh6 {[%clk 0:01:08]}  gxh6 {[%clk 0:02:08]} 32. Qxh6 {[%clk 0:01:08]}  Qd7 {[%clk 0:02:09]} 33. Rf7 {[%clk 0:01:00]}  Rxb2+ {[%clk 0:02:09]} 34. Kh3 {[%clk 0:00:59]}  Qb5 {[%clk 0:02:07]} 35. Qg5 {[%clk 0:00:58]}  Rb8 {[%clk 0:01:58]} 36. h6 {[%clk 0:00:57]}  Nxc3 {[%clk 0:01:54]} 37. h7 {[%clk 0:00:51]}  Ne4 {[%clk 0:01:54]} 38. Qf4 {[%clk 0:00:45]}  Qb3+ {[%clk 0:01:46]} 39. Kh4 {[%clk 0:00:40]}  Rg2 {[%clk 0:01:12]} 40. h8=Q {[%clk 0:00:34]}  Rxh8+ {[%clk 0:00:51]} 41. Nxh8 {[%clk 0:00:35]}  c3 {[%clk 0:00:52]} 42. Qf3 {[%clk 0:00:08]}  Rh2+ {[%clk 0:00:49]} 43. Kg4 {[%clk 0:00:08]}  Rxh8 {[%clk 0:00:48]} 44. Rc7 {[%clk 0:00:04]}  Rg8+ {[%clk 0:00:47]} 45. Kh4 {[%clk 0:00:04]}  Qb2 {[%clk 0:00:39]} 46. Rh1 {[%clk 0:00:05]}  Rh8+ {[%clk 0:00:29]} 47. Kg4 {[%clk 0:00:05]}  Rxh1 {[%clk 0:00:29]} 48. Qxh1 {[%clk 0:00:05]}  Nf2+ {[%clk 0:00:30]} 0-1


[Site "https://www.chess.com"]

[Event "Titled Tuesday Blitz June 6 Early 2023"]
[White "Wadsworth, Matthew J"]
[Black "Deac, Bogdan-Daniel"]
[WhiteFideId "415804"]
[BlackFideId "1226380"]
[WhiteElo "2347"]
[BlackElo "2644"]
[Result "1/2-1/2"]
[Round "2"]
[TimeControl "180+2"]
[Date "2023.06.06"]
[WhiteClock "0:00:04"]
[BlackClock "0:00:04"]
[Board "17"]

1. c4 {[%clk 0:03:00]}  b6 {[%clk 0:02:36]} 2. g3 {[%clk 0:02:59]}  Bb7 {[%clk 0:02:36]} 3. Nf3 {[%clk 0:03:00]}  c5 {[%clk 0:02:36]} 4. Bg2 {[%clk 0:02:59]}  g6 {[%clk 0:02:37]} 5. Nc3 {[%clk 0:02:57]}  Bg7 {[%clk 0:02:37]} 6. d3 {[%clk 0:02:54]}  Nf6 {[%clk 0:02:36]} 7. e4 {[%clk 0:02:54]}  d6 {[%clk 0:02:36]} 8. h3 {[%clk 0:02:51]}  Nc6 {[%clk 0:02:36]} 9. Be3 {[%clk 0:02:51]}  Rc8 {[%clk 0:02:33]} 10. Qd2 {[%clk 0:02:49]}  h6 {[%clk 0:02:09]} 11. O-O {[%clk 0:02:47]}  a6 {[%clk 0:02:09]} 12. Rab1 {[%clk 0:02:46]}  Nd7 {[%clk 0:02:06]} 13. a3 {[%clk 0:02:42]}  Nd4 {[%clk 0:02:06]} 14. b4 {[%clk 0:02:38]}  Ba8 {[%clk 0:02:06]} 15. Bxd4 {[%clk 0:02:32]}  cxd4 {[%clk 0:02:05]} 16. Ne2 {[%clk 0:02:33]}  e5 {[%clk 0:02:04]} 17. Nh4 {[%clk 0:02:31]}  b5 {[%clk 0:01:52]} 18. cxb5 {[%clk 0:02:15]}  axb5 {[%clk 0:01:53]} 19. f4 {[%clk 0:02:15]}  exf4 {[%clk 0:01:48]} 20. Nxf4 {[%clk 0:02:13]}  O-O {[%clk 0:01:48]} 21. Nf3 {[%clk 0:01:35]}  Rc3 {[%clk 0:01:39]} 22. Qa2 {[%clk 0:01:26]}  Kh7 {[%clk 0:01:33]} 23. Rbd1 {[%clk 0:01:03]}  Ne5 {[%clk 0:01:12]} 24. Nd5 {[%clk 0:00:49]}  Rxd3 {[%clk 0:00:36]} 25. Rxd3 {[%clk 0:00:35]}  Nxd3 {[%clk 0:00:35]} 26. Rd1 {[%clk 0:00:32]}  Bxd5 {[%clk 0:00:20]} 27. Qxd5 {[%clk 0:00:31]}  Nb2 {[%clk 0:00:20]} 28. Rc1 {[%clk 0:00:24]}  Qb6 {[%clk 0:00:10]} 29. Rc6 {[%clk 0:00:22]}  Qa7 {[%clk 0:00:10]} 30. Rxd6 {[%clk 0:00:18]}  d3+ {[%clk 0:00:09]} 31. Kh2 {[%clk 0:00:18]}  Qxa3 {[%clk 0:00:09]} 32. e5 {[%clk 0:00:17]}  Nc4 {[%clk 0:00:08]} 33. Rd7 {[%clk 0:00:16]}  Qxb4 {[%clk 0:00:05]} 34. Qxd3 {[%clk 0:00:15]}  Nxe5 {[%clk 0:00:04]} 35. Nxe5 {[%clk 0:00:14]}  Bxe5 {[%clk 0:00:05]} 36. Qd5 {[%clk 0:00:13]}  Bg7 {[%clk 0:00:05]} 37. Rxf7 {[%clk 0:00:13]}  Rxf7 {[%clk 0:00:05]} 38. Qxf7 {[%clk 0:00:13]}  Qb2 {[%clk 0:00:06]} 39. h4 {[%clk 0:00:11]}  Qe2 {[%clk 0:00:05]} 40. Qf3 {[%clk 0:00:10]}  Qe5 {[%clk 0:00:04]} 41. Qe4 {[%clk 0:00:09]}  Qc5 {[%clk 0:00:04]} 42. Bf3 {[%clk 0:00:08]}  h5 {[%clk 0:00:05]} 43. g4 {[%clk 0:00:08]}  Qf2+ {[%clk 0:00:04]} 44. Kh3 {[%clk 0:00:06]}  hxg4+ {[%clk 0:00:05]} 45. Qxg4 {[%clk 0:00:04]}  Bf6 {[%clk 0:00:05]} 46. h5 {[%clk 0:00:04]}  gxh5 {[%clk 0:00:05]} 47. Qxh5+ {[%clk 0:00:04]}  Kg7 {[%clk 0:00:05]} 48. Qg4+ {[%clk 0:00:04]}  Kh6 {[%clk 0:00:05]} 49. Qf4+ {[%clk 0:00:04]}  Kg7 {[%clk 0:00:05]} 50. Qg4+ {[%clk 0:00:04]}  Kf8 {[%clk 0:00:05]} 51. Qc8+ {[%clk 0:00:04]}  Kf7 {[%clk 0:00:04]} 52. Qd7+ {[%clk 0:00:04]}  Kf8 {[%clk 0:00:03]} 53. Qc8+ {[%clk 0:00:04]}  Ke7 {[%clk 0:00:03]} 54. Qc7+ {[%clk 0:00:04]}  Ke6 {[%clk 0:00:03]} 55. Qc6+ {[%clk 0:00:04]}  Kf7 {[%clk 0:00:02]} 56. Qd5+ {[%clk 0:00:04]}  Kg7 {[%clk 0:00:03]} 57. Qd7+ {[%clk 0:00:02]}  Kh6 {[%clk 0:00:03]} 58. Qg4 {[%clk 0:00:02]}  Qf1+ {[%clk 0:00:03]} 59. Qg2 {[%clk 0:00:01]}  Qc1 {[%clk 0:00:04]} 60. Qg4 {[%clk 0:00:01]}  Qf1+ {[%clk 0:00:03]} 61. Qg2 {[%clk 0:00:01]}  Qe1 {[%clk 0:00:04]} 62. Qg4 {[%clk 0:00:02]}  b4 {[%clk 0:00:04]} 63. Qh5+ {[%clk 0:00:02]}  Kg7 {[%clk 0:00:04]} 64. Qg4+ {[%clk 0:00:03]}  Kf8 {[%clk 0:00:04]} 65. Qc8+ {[%clk 0:00:03]}  Kf7 {[%clk 0:00:05]} 66. Qc4+ {[%clk 0:00:04]}  Kg7 {[%clk 0:00:04]} 67. Qg4+ {[%clk 0:00:04]}  Kf8 {[%clk 0:00:04]} 68. Qc8+ {[%clk 0:00:04]}  Kf7 {[%clk 0:00:04]} 69. Qc4+ {[%clk 0:00:04]}  Kg7 {[%clk 0:00:04]} 70. Qg4+ {[%clk 0:00:04]} 1/2-1/2


[Site "https://www.chess.com"]

[Event "Titled Tuesday Blitz June 6 Early 2023"]
[White "Lenderman, Aleksandr"]
[Black "Guz, Ari"]
[WhiteFideId "2021285"]
[BlackFideId "2825759"]
[WhiteElo "2607"]
[BlackElo "2205"]
[Result "1-0"]
[Round "2"]
[TimeControl "180+2"]
[Date "2023.06.06"]
[WhiteClock "0:00:12"]
[BlackClock "0:00:08"]
[Board "18"]

1. Nf3 {[%clk 0:03:00]}  Nf6 {[%clk 0:02:57]} 2. c4 {[%clk 0:03:00]}  c5 {[%clk 0:02:53]} 3. Nc3 {[%clk 0:03:00]}  Nc6 {[%clk 0:02:54]} 4. g3 {[%clk 0:02:59]}  g6 {[%clk 0:02:54]} 5. Bg2 {[%clk 0:02:58]}  Bg7 {[%clk 0:02:54]} 6. O-O {[%clk 0:02:57]}  O-O {[%clk 0:02:54]} 7. d4 {[%clk 0:02:57]}  d6 {[%clk 0:02:50]} 8. d5 {[%clk 0:02:54]}  Na5 {[%clk 0:02:50]} 9. Nd2 {[%clk 0:02:48]}  a6 {[%clk 0:02:48]} 10. Qc2 {[%clk 0:02:46]}  Rb8 {[%clk 0:02:45]} 11. b3 {[%clk 0:02:46]}  b5 {[%clk 0:02:43]} 12. Bb2 {[%clk 0:02:46]}  bxc4 {[%clk 0:02:40]} 13. bxc4 {[%clk 0:02:47]}  Nd7 {[%clk 0:02:36]} 14. Rab1 {[%clk 0:02:42]}  Nb6 {[%clk 0:02:28]} 15. Nd1 {[%clk 0:02:41]}  Bxb2 {[%clk 0:02:24]} 16. Rxb2 {[%clk 0:02:42]}  Bd7 {[%clk 0:02:23]} 17. Ne3 {[%clk 0:02:37]}  Qc7 {[%clk 0:02:15]} 18. Rfb1 {[%clk 0:02:35]}  Na4 {[%clk 0:02:13]} 19. Rxb8 {[%clk 0:02:32]}  Rxb8 {[%clk 0:02:14]} 20. Nb3 {[%clk 0:02:13]}  Rb4 {[%clk 0:02:03]} 21. Be4 {[%clk 0:02:11]}  Nxb3 {[%clk 0:01:18]} 22. axb3 {[%clk 0:02:11]}  Nb6 {[%clk 0:01:18]} 23. Qa2 {[%clk 0:02:07]}  Nc8 {[%clk 0:01:01]} 24. Qxa6 {[%clk 0:02:03]}  Rb6 {[%clk 0:01:01]} 25. Qa5 {[%clk 0:01:59]}  Qb7 {[%clk 0:01:00]} 26. Qc3 {[%clk 0:01:59]}  Ba4 {[%clk 0:00:48]} 27. Bc2 {[%clk 0:01:58]}  Bd7 {[%clk 0:00:45]} 28. h4 {[%clk 0:01:57]}  h5 {[%clk 0:00:43]} 29. Ng2 {[%clk 0:01:52]}  Rb4 {[%clk 0:00:41]} 30. Nf4 {[%clk 0:01:51]}  Nb6 {[%clk 0:00:37]} 31. Ra1 {[%clk 0:01:38]}  Nc8 {[%clk 0:00:21]} 32. Ra3 {[%clk 0:01:38]}  Rb6 {[%clk 0:00:21]} 33. Bxg6 {[%clk 0:01:36]}  fxg6 {[%clk 0:00:20]} 34. Nxg6 {[%clk 0:01:37]}  Kf7 {[%clk 0:00:21]} 35. Nf4 {[%clk 0:01:37]}  Ra6 {[%clk 0:00:20]} 36. Rxa6 {[%clk 0:01:37]}  Qxa6 {[%clk 0:00:21]} 37. Nxh5 {[%clk 0:01:35]}  Bf5 {[%clk 0:00:20]} 38. Qf3 {[%clk 0:01:26]}  Qa1+ {[%clk 0:00:19]} 39. Kg2 {[%clk 0:01:19]}  Kg6 {[%clk 0:00:18]} 40. e4 {[%clk 0:01:12]}  Bd7 {[%clk 0:00:18]} 41. Qf4 {[%clk 0:01:04]}  Qe5 {[%clk 0:00:17]} 42. g4 {[%clk 0:01:00]}  e6 {[%clk 0:00:14]} 43. Qf8 {[%clk 0:00:30]}  Qxe4+ {[%clk 0:00:14]} 44. Kg3 {[%clk 0:00:23]}  Qe5+ {[%clk 0:00:05]} 45. Nf4+ {[%clk 0:00:23]}  Kh7 {[%clk 0:00:05]} 46. Qf7+ {[%clk 0:00:24]}  Qg7 {[%clk 0:00:05]} 47. Qh5+ {[%clk 0:00:17]}  Kg8 {[%clk 0:00:05]} 48. dxe6 {[%clk 0:00:17]}  Bc6 {[%clk 0:00:06]} 49. Nd5 {[%clk 0:00:16]}  Bxd5 {[%clk 0:00:06]} 50. Qxd5 {[%clk 0:00:16]}  Qe5+ {[%clk 0:00:03]} 51. Qxe5 {[%clk 0:00:16]}  dxe5 {[%clk 0:00:04]} 52. g5 {[%clk 0:00:16]}  Nd6 {[%clk 0:00:04]} 53. Kg4 {[%clk 0:00:17]}  Kf8 {[%clk 0:00:05]} 54. g6 {[%clk 0:00:16]}  Ke7 {[%clk 0:00:05]} 55. g7 {[%clk 0:00:16]}  Ne8 {[%clk 0:00:04]} 56. g8=Q {[%clk 0:00:09]}  Nf6+ {[%clk 0:00:04]} 57. Kf5 {[%clk 0:00:10]}  Nxg8 {[%clk 0:00:05]} 58. Kxe5 {[%clk 0:00:11]}  Nf6 {[%clk 0:00:06]} 59. f4 {[%clk 0:00:11]}  Ng4+ {[%clk 0:00:06]} 60. Kd5 {[%clk 0:00:11]}  Ne3+ {[%clk 0:00:06]} 61. Kxc5 {[%clk 0:00:11]}  Kxe6 {[%clk 0:00:07]} 62. b4 {[%clk 0:00:12]}  Nf5 {[%clk 0:00:07]} 63. h5 {[%clk 0:00:11]}  Ng3 {[%clk 0:00:07]} 64. h6 {[%clk 0:00:11]}  Ne4+ {[%clk 0:00:08]} 65. Kc6 {[%clk 0:00:12]}  Nf6 {[%clk 0:00:08]} 66. b5 {[%clk 0:00:12]} 1-0


[Site "https://www.chess.com"]

[Event "Titled Tuesday Blitz June 6 Early 2023"]
[White "Czerw, Dawid"]
[Black "Bjerre, Jonas Buhl"]
[WhiteFideId "1145746"]
[BlackFideId "1444948"]
[WhiteElo "2144"]
[BlackElo "2525"]
[Result "0-1"]
[Round "2"]
[TimeControl "180+2"]
[Date "2023.06.06"]
[WhiteClock "0:00:03"]
[BlackClock "0:00:18"]
[Board "19"]

1. e4 {[%clk 0:02:59]}  c5 {[%clk 0:02:59]} 2. Nf3 {[%clk 0:02:58]}  e6 {[%clk 0:02:59]} 3. d4 {[%clk 0:02:58]}  cxd4 {[%clk 0:03:00]} 4. Nxd4 {[%clk 0:02:59]}  Nc6 {[%clk 0:03:00]} 5. Nc3 {[%clk 0:02:59]}  Qc7 {[%clk 0:03:00]} 6. Be3 {[%clk 0:02:57]}  a6 {[%clk 0:03:00]} 7. Qd2 {[%clk 0:02:56]}  Nf6 {[%clk 0:02:59]} 8. O-O-O {[%clk 0:02:55]}  Be7 {[%clk 0:02:39]} 9. f4 {[%clk 0:02:55]}  d6 {[%clk 0:02:31]} 10. Be2 {[%clk 0:02:55]}  b5 {[%clk 0:02:30]} 11. Nxc6 {[%clk 0:02:32]}  Qxc6 {[%clk 0:02:30]} 12. e5 {[%clk 0:02:33]}  b4 {[%clk 0:02:28]} 13. Bf3 {[%clk 0:02:04]}  d5 {[%clk 0:02:25]} 14. Ne2 {[%clk 0:02:01]}  Ne4 {[%clk 0:02:23]} 15. Bxe4 {[%clk 0:01:52]}  dxe4 {[%clk 0:02:23]} 16. Nd4 {[%clk 0:01:49]}  Qc4 {[%clk 0:02:11]} 17. Kb1 {[%clk 0:01:42]}  O-O {[%clk 0:02:10]} 18. g4 {[%clk 0:01:37]}  Bb7 {[%clk 0:02:04]} 19. f5 {[%clk 0:01:29]}  Rfd8 {[%clk 0:01:33]} 20. Qf2 {[%clk 0:01:16]}  a5 {[%clk 0:01:28]} 21. Rhf1 {[%clk 0:00:58]}  Bd5 {[%clk 0:00:42]} 22. b3 {[%clk 0:00:57]}  Qc7 {[%clk 0:00:42]} 23. fxe6 {[%clk 0:00:35]}  fxe6 {[%clk 0:00:31]} 24. Qf7+ {[%clk 0:00:20]}  Kh8 {[%clk 0:00:31]} 25. Nb5 {[%clk 0:00:16]}  Qd7 {[%clk 0:00:23]} 26. Nd6 {[%clk 0:00:09]}  Rf8 {[%clk 0:00:19]} 27. Qh5 {[%clk 0:00:08]}  Bxd6 {[%clk 0:00:20]} 28. exd6 {[%clk 0:00:07]}  Qxd6 {[%clk 0:00:21]} 29. Bd4 {[%clk 0:00:06]}  Qe7 {[%clk 0:00:19]} 30. Qe5 {[%clk 0:00:05]}  Kg8 {[%clk 0:00:17]} 31. h4 {[%clk 0:00:05]}  Rac8 {[%clk 0:00:17]} 32. h5 {[%clk 0:00:05]}  Rf3 {[%clk 0:00:17]} 33. h6 {[%clk 0:00:04]}  Qc7 {[%clk 0:00:17]} 34. Rxf3 {[%clk 0:00:03]}  Qxc2+ {[%clk 0:00:16]} 35. Ka1 {[%clk 0:00:03]}  Qxd1+ {[%clk 0:00:17]} 36. Kb2 {[%clk 0:00:03]}  Qc1# {[%clk 0:00:18]} 0-1


[Site "https://www.chess.com"]